bitfinex-derivatives/quotes_BTCF0:USTF0_20250402
["timestamp","ask_amount","ask_price","bid_price","bid_amount"]
[1743597518976,0.00100001,84799.0,84798.0,0.3914]
[1743597519370,0.04990001,84799.0,84798.0,0.3914]
[1743597519570,0.00100001,84799.0,84798.0,0.3914]
[1743597520477,0.00100001,84799.0,84798.0,1.1114]
[1743597520781,0.0004,84799.0,84798.0,1.1114]
[1743597521182,0.0004,84799.0,84798.0,1.2537]
[1743597522482,0.0004,84799.0,84798.0,1.3537]
[1743597522682,0.0004,84799.0,84798.0,1.2537]
[1743597524886,0.0004,84799.0,84798.0,0.5337]
[1743597525076,0.0004,84799.0,84798.0,0.7737]
[1743597525282,0.0004,84799.0,84798.0,1.4937]
[1743597528077,0.0004,84799.0,84798.0,1.2537]
[1743597531487,0.0004,84799.0,84798.0,1.3637]
[1743597532584,0.0485,84799.0,84798.0,1.3637]
[1743597532797,0.0485,84799.0,84798.0,1.2537]
[1743597534690,0.0485,84799.0,84798.0,1.6145]
[1743597535392,0.0485,84799.0,84798.0,0.8444]
[1743597535785,0.0485,84799.0,84798.0,1.5644]
[1743597536187,0.0485,84799.0,84798.0,1.6744]
[1743597536389,0.0485,84799.0,84798.0,1.5644]
[1743597536694,0.0004,84799.0,84798.0,1.5644]
[1743597536886,0.0004,84799.0,84798.0,1.6644]
[1743597537590,0.0502,84799.0,84798.0,1.6644]
[1743597537982,0.0502,84799.0,84798.0,1.5644]
[1743597542187,0.0502,84799.0,84798.0,1.4722]
[1743597542393,0.0971,84799.0,84798.0,1.4722]
[1743597543391,0.0502,84799.0,84798.0,1.5622]
[1743597543886,0.0502,84799.0,84798.0,1.6584]
[1743597544081,0.0502,84799.0,84798.0,1.5684]
[1743597544688,0.0973,84799.0,84798.0,1.5684]
[1743597545591,0.0502,84799.0,84798.0,1.8284]
[1743597545799,0.0502,84799.0,84798.0,1.5684]
[1743597546187,0.0502,84799.0,84798.0,1.93241969]
[1743597546592,0.0502,84799.0,84798.0,2.04241969]
[1743597557614,0.1,84799.0,84798.0,1.99511969]
[1743597557805,0.1,84799.0,84798.0,1.94621969]
[1743597560410,0.0502,84799.0,84798.0,1.94621969]
[1743597560913,0.0971,84799.0,84798.0,1.94621969]
[1743597561311,0.0971,84799.0,84798.0,1.22621969]
[1743597566713,0.0971,84799.0,84798.0,0.8622]
[1743597570121,0.09778,84799.0,84798.0,0.8622]
[1743597570331,0.0971,84799.0,84798.0,0.9588]
[1743597571520,0.0502,84799.0,84798.0,0.9588]
[1743597574825,0.097,84799.0,84798.0,0.9588]
[1743597579318,0.0502,84799.0,84798.0,0.9588]
[1743597580325,0.0502,84799.0,84798.0,1.6788]
[1743597581730,0.0502,84799.0,84798.0,1.6318]
[1743597581930,0.1408,84799.0,84798.0,0.8622]
[1743597582833,0.1408,84799.0,84798.0,1.23022732]
[1743597584532,0.1408,84799.0,84798.0,1.31902732]
[1743597584924,0.1408,84799.0,84798.0,1.27552732]
[1743597585120,0.1408,84799.0,84798.0,1.23022732]
[1743597586327,0.1408,84799.0,84798.0,1.31902732]
[1743597587032,0.1408,84799.0,84798.0,1.67106336]
[1743597587227,0.0951,84799.0,84798.0,1.67106336]
[1743597589236,0.0502,84799.0,84798.0,1.67106336]
[1743597590534,0.142,84799.0,84798.0,1.62756336]
[1743597590834,0.142,84799.0,84798.0,1.23022732]
[1743597592237,0.0502,84799.0,84798.0,1.23022732]
[1743597595836,0.0004,84799.0,84798.0,1.23022732]
[1743597596237,0.0461,84799.0,84798.0,1.23022732]
[1743597601544,0.0004,84799.0,84798.0,1.23022732]
[1743597601732,0.01160838,84800.0,84798.0,1.23022732]
[1743597602046,0.0438,84805.0,84799.0,0.1344]
[1743597602243,0.0438,84805.0,84799.0,0.42504]
[1743597605143,0.06222076,84814.0,84800.0,0.04692933]
[1743597605337,0.0452,84813.0,84804.0,0.10512419]
[1743597605531,0.0452,84813.0,84812.0,0.7216]
[1743597605736,0.04580001,84813.0,84812.0,0.8722]
[1743597606141,0.00060001,84813.0,84812.0,0.8722]
[1743597606342,0.06222076,84814.0,84812.0,0.88429282]
[1743597606740,0.06282077,84814.0,84813.0,0.8522]
[1743597607046,0.06222076,84814.0,84813.0,0.1806]
[1743597607246,0.15312076,84814.0,84813.0,0.1806]
[1743597607438,0.15372077,84814.0,84813.0,0.1806]
[1743597607945,0.09150001,84814.0,84813.0,0.1806]
[1743597608137,0.0909,84814.0,84813.0,0.1806]
[1743597610244,0.0909,84814.0,84813.0,0.1606]
[1743597610545,0.0909,84814.0,84813.0,0.1706]
[1743597612945,0.0909,84814.0,84813.0,0.2612]
[1743597613651,0.0909,84814.0,84813.0,0.9812]
[1743597614450,0.0909,84814.0,84813.0,0.1706]
[1743597614850,0.0909,84814.0,84813.0,0.1606]
[1743597617344,0.21455427,84814.0,84813.0,0.1606]
[1743597620253,0.21455427,84814.0,84813.0,0.5214]
[1743597623459,0.25735427,84814.0,84813.0,0.5214]
[1743597633776,0.25795428,84814.0,84813.0,0.5214]
[1743597633968,0.25735427,84814.0,84813.0,0.5214]
[1743597636070,0.12365427,84814.0,84813.0,0.6464]
[1743597636275,0.0406,84823.0,84813.0,0.6564]
[1743597636781,0.18184468,84823.0,84814.0,0.72]
[1743597636975,0.18184468,84823.0,84814.0,0.0906]
[1743597637182,0.18184468,84823.0,84814.0,0.1742]
[1743597637474,0.18184468,84823.0,84814.0,0.8942]
[1743597639375,8e-05,84817.0,84814.0,0.8942]
[1743597640779,0.14124468,84823.0,84814.0,0.8942]
[1743597640983,8e-05,84817.0,84814.0,0.8942]
[1743597641586,8e-05,84817.0,84814.0,0.97236]
[1743597642177,0.0403,84822.0,84814.0,0.5503933]
[1743597642376,0.0403,84822.0,84814.0,0.6285933]
[1743597642571,0.0403,84822.0,84814.0,0.5503933]
[1743597642976,0.0428,84821.0,84814.0,0.5503933]
[1743597645885,0.0428,84821.0,84814.0,0.1742]
[1743597646387,8e-05,84816.0,84814.0,0.1742]
[1743597646585,0.0403,84822.0,84814.0,0.1742]
[1743597647385,8e-05,84816.0,84814.0,0.1742]
[1743597647986,0.0403,84822.0,84814.0,0.1742]
[1743597648195,0.0403,84822.0,84821.0,0.3608]
[1743597648487,0.0403,84822.0,84821.0,0.37148]
[1743597649476,0.0403,84822.0,84821.0,0.3803259]
[1743597650681,8e-05,84823.0,84821.0,0.3803259]
[1743597650878,8e-05,84823.0,84822.0,0.123]
[1743597651090,8e-05,84823.0,84822.0,0.13368]
[1743597651475,0.0004,84831.0,84822.0,0.14368]
[1743597651678,0.0004,84831.0,84830.0,0.3608]
[1743597651876,0.00100001,84831.0,84830.0,0.3714]
[1743597652085,0.00100001,84831.0,84830.0,0.3814]
[1743597652281,0.14096467,84839.0,84830.0,0.3814]
[1743597652486,0.14156468,84839.0,84838.0,0.3608]
[1743597652688,0.14156468,84839.0,84838.0,0.48976]
[1743597653290,0.14156468,84839.0,84838.0,1.20976]
[1743597654180,0.14156468,84839.0,84838.0,1.13148]
[1743597654376,0.14156468,84839.0,84838.0,0.48976]
[1743597655984,0.0421,84860.0,84838.0,0.63976]
[1743597656276,0.0427,84860.0,84850.0,0.3608]
[1743597656480,0.0427,84860.0,84852.0,0.3608]
[1743597656688,0.0435,84860.0,84859.0,0.3608]
[1743597656888,0.0435,84860.0,84859.0,0.38156]
[1743597657089,0.0427,84860.0,84859.0,0.38156]
[1743597657283,8e-05,84862.0,84859.0,0.57156]
[1743597657585,8e-05,84862.0,84860.0,0.0814]
[1743597657586,0.0008,84862.0,84860.0,0.0814]
[1743597657785,0.0008,84862.0,84861.0,0.72]
[1743597657995,0.1104509,84868.0,84861.0,1.23908]
[1743597658190,0.1104509,84868.0,84867.0,0.3608]
[1743597658489,0.1104509,84868.0,84867.0,0.72984]
[1743597658995,0.1104509,84868.0,84867.0,0.73877222]
[1743597659491,0.1104509,84868.0,84867.0,0.66045222]
[1743597659799,0.1104509,84868.0,84867.0,0.73873222]
[1743597659980,0.1104509,84868.0,84867.0,0.73869222]
[1743597660793,0.21677881,84877.0,84867.0,0.73869222]
[1743597661090,0.21741881,84877.0,84876.0,0.3608]
[1743597661291,0.21741881,84877.0,84876.0,1.23152]
[1743597662491,0.00072,84877.0,84876.0,1.23152]
[1743597662690,0.0004,84879.0,84876.0,0.51152]
[1743597663086,0.0004,84879.0,84877.0,0.8024]
[1743597663397,0.0004,84879.0,84877.0,1.08312]
[1743597663693,0.0004,84879.0,84878.0,0.039]
[1743597663892,0.00016,84890.0,84878.0,0.34972]
[1743597664094,0.00016,84892.0,84878.0,0.34972]
[1743597664095,0.00016,84892.0,84889.0,0.3608]
[1743597664282,8e-05,84893.0,84889.0,0.3608]
[1743597664283,8e-05,84893.0,84891.0,0.3608]
[1743597664492,8e-05,84893.0,84892.0,0.20064]
[1743597664687,8e-05,84893.0,84892.0,0.34136]
[1743597665192,8e-05,84893.0,84892.0,1.06136]
[1743597666088,8e-05,84893.0,84892.0,0.98312]
[1743597666381,8e-05,84893.0,84892.0,1.06136]
[1743597666590,0.11785577,85630.0,84892.0,1.47136]
[1743597666591,0.0776,84926.0,84892.0,1.47136]
[1743597666791,0.0776,84926.0,84925.0,0.3608]
[1743597667004,0.0776,84926.0,84925.0,0.3708]
[1743597667495,0.07820001,84926.0,84925.0,0.37152]
[1743597668289,0.0386,84926.0,84925.0,0.44150599]
[1743597668486,0.0386,84926.0,84925.0,0.48420599]
[1743597668687,0.0386,84926.0,84925.0,0.51982599]
[1743597669298,0.0386,84926.0,84925.0,0.44150599]
[1743597669503,0.0386,84926.0,84925.0,0.51978599]
[1743597669889,0.03908,84932.0,84925.0,0.51978599]
[1743597670093,8e-05,84932.0,84926.0,0.0424]
[1743597670291,8e-05,84932.0,84931.0,0.3608]
[1743597670494,0.04072,84941.0,84931.0,0.7308]
[1743597670804,0.04072,84941.0,84940.0,0.3608]
[1743597670993,0.04072,84941.0,84940.0,0.4898]
[1743597671492,0.04072,84941.0,84940.0,0.41152]
[1743597671894,0.08152,84941.0,84940.0,0.40152]
[1743597672088,0.08224,84941.0,84940.0,0.40152]
[1743597673198,0.78351163,84941.0,84914.0,0.3608]
[1743597673398,0.3608,84926.0,84910.0,0.3608]
[1743597673697,0.11852,84925.0,84910.0,0.3608]
[1743597673903,0.1601813,84920.0,84910.0,0.3714]
[1743597674203,0.401,84919.0,84910.0,0.0006]
[1743597674396,0.54521044,84919.0,84902.0,0.00935623]
[1743597674699,0.54521044,84919.0,84904.0,0.20932175]
[1743597674899,0.62357044,84919.0,84904.0,0.20932175]
[1743597675403,0.54521044,84919.0,84904.0,0.20932175]
[1743597675604,0.54521044,84919.0,84904.0,0.21932175]
[1743597675798,0.54521044,84919.0,84905.0,0.0417]
[1743597675998,0.54521044,84919.0,84905.0,0.0923]
[1743597676196,0.53521044,84919.0,84905.0,0.0923]
[1743597676499,0.53521044,84919.0,84905.0,0.0106]
[1743597676699,0.0404,84918.0,84905.0,0.0106]
[1743597676997,0.04104,84918.0,84905.0,0.0106]
[1743597677297,0.3608,84912.0,84905.0,0.0106]
[1743597677502,0.0784,84911.0,84905.0,0.0106]
[1743597677698,0.07904,84911.0,84905.0,0.0106]
[1743597677903,0.0421,84910.0,84905.0,0.0106]
[1743597678091,0.04274,84910.0,84905.0,0.0106]
[1743597678295,0.0797,84909.0,84905.0,0.0106]
[1743597678493,0.08042,84909.0,84905.0,0.0106]
[1743597678698,0.12577299,84908.0,84905.0,0.0106]
[1743597678893,0.12641299,84908.0,84905.0,0.0106]
[1743597679092,0.0805,84907.0,84905.0,0.0106]
[1743597679294,0.08118,84907.0,84905.0,0.0106]
[1743597681198,0.12866266,84906.0,84905.0,0.0106]
[1743597681395,0.12930266,84906.0,84905.0,0.0106]
[1743597681606,0.37120266,84906.0,84890.0,0.20872175]
[1743597681802,0.3608,84893.0,84890.0,0.20956175]
[1743597682103,0.1219,84892.0,84890.0,0.20956175]
[1743597682301,0.29816163,84892.0,84890.0,0.20956175]
[1743597682499,0.29816163,84892.0,84886.0,0.00047122]
[1743597682702,0.29816163,84892.0,84886.0,0.00107122]
[1743597683000,0.29816163,84892.0,84883.0,0.280748]
[1743597683001,0.3608,84889.0,84883.0,0.280748]
[1743597683208,0.0398,84888.0,84883.0,0.281348]
[1743597683395,0.18047766,84888.0,84883.0,0.281348]
[1743597683592,0.18047766,84888.0,84886.0,0.28057138]
[1743597683791,0.18047766,84888.0,84878.0,0.00056]
[1743597683997,0.3608,84879.0,84878.0,0.0018]
[1743597684199,0.37212,84879.0,84878.0,0.0018]
[1743597684399,0.49694214,84879.0,84878.0,0.0018]
[1743597684811,0.48694214,84879.0,84878.0,0.0018]
[1743597685700,0.48694214,84879.0,84878.0,0.0423]
[1743597686099,0.36212,84879.0,84878.0,0.0423]
[1743597686301,0.00132,84879.0,84878.0,0.4031]
[1743597686510,0.1999813,84888.0,84878.0,0.4031]
[1743597686511,0.1999813,84888.0,84878.0,0.40254]
[1743597686709,0.21130131,84888.0,84878.0,0.40254]
[1743597686910,0.12657713,84884.0,84878.0,0.4031]
[1743597687100,0.073,84883.0,84878.0,0.4031]
[1743597687407,0.07424001,84883.0,84878.0,0.0423]
[1743597687707,0.13528055,84882.0,84878.0,0.0423]
[1743597687900,0.13652056,84882.0,84878.0,0.0423]
[1743597688209,0.073,84881.0,84878.0,0.0423]
[1743597688402,0.03924001,84881.0,84878.0,0.0423]
[1743597688596,0.1602613,84888.0,84878.0,0.0423]
[1743597688597,8e-05,84888.0,84879.0,0.0787]
[1743597688803,0.03936,84888.0,84885.0,0.3608]
[1743597688999,0.07428,84888.0,84886.0,0.0408]
[1743597689201,0.07428,84888.0,84887.0,0.72]
[1743597689412,0.07428,84888.0,84887.0,0.00064]
[1743597690209,0.03928,84888.0,84887.0,0.00064]
[1743597690406,0.03928,84888.0,84887.0,0.04004]
[1743597690707,0.00128,84888.0,84887.0,0.04004]
[1743597692115,0.00017662,84899.0,84887.0,0.04004]
[1743597692305,0.00017662,84899.0,84896.0,0.3608]
[1743597692614,0.00017662,84899.0,84897.0,0.1162]
[1743597692806,0.00017662,84899.0,84897.0,0.1168]
[1743597693317,0.00017662,84899.0,84897.0,0.0774]
[1743597693519,0.13133736,84898.0,84897.0,0.0402]
[1743597693716,0.20255736,84898.0,84897.0,0.0402]
[1743597694713,0.04292,84898.0,84897.0,0.0402]
[1743597694913,0.042,84898.0,84897.0,0.1192]
[1743597695609,0.042,84898.0,84897.0,0.0781]
[1743597697621,0.00017662,84899.0,84897.0,0.1185]
[1743597698619,0.01462764,84935.0,84897.0,0.1185]
[1743597698819,8e-05,84905.0,84899.0,0.1601813]
[1743597699020,0.00865054,84941.0,84904.0,0.3608]
[1743597699217,8e-05,84915.0,84905.0,0.4374]
[1743597699427,0.41393467,84940.0,84914.0,0.3608]
[1743597699428,0.00132,84927.0,84914.0,0.3608]
[1743597699610,8e-05,84924.0,84915.0,0.0766]
[1743597699814,8e-05,84924.0,84915.0,0.0772]
[1743597700014,8e-05,84924.0,84922.0,0.3608]
[1743597700215,8e-05,84924.0,84923.0,0.0769]
[1743597700415,8e-05,84924.0,84923.0,0.07758]
[1743597700909,0.0004,84927.0,84923.0,0.07758]
[1743597701516,0.0004,84927.0,84923.0,0.08656291]
[1743597702520,0.0004,84927.0,84924.0,0.0381]
[1743597702722,0.0004,84927.0,84924.0,0.0387]
[1743597703023,0.0004,84927.0,84925.0,0.0787]
[1743597703221,0.0004,84927.0,84925.0,0.07934]
[1743597704728,0.12655039,84926.0,84925.0,0.07934]
[1743597705121,0.1274304,84926.0,84925.0,0.07934]
[1743597705827,0.12655039,84926.0,84925.0,0.07934]
[1743597706025,0.1274304,84926.0,84925.0,0.07934]
[1743597707525,0.00088001,84926.0,84925.0,0.07934]
[1743597707725,0.0004,84927.0,84925.0,0.07934]
[1743597708126,0.00017662,84929.0,84925.0,0.07934]
[1743597709143,0.00017662,84929.0,84926.0,0.72]
[1743597709332,0.00017662,84929.0,84926.0,0.7206]
[1743597709529,0.00017662,84929.0,84927.0,0.077]
[1743597709723,0.00017662,84929.0,84927.0,0.0776]
[1743597710130,0.12417281,84928.0,84927.0,0.0374]
[1743597710331,0.16185282,84928.0,84927.0,0.0374]
[1743597710525,0.19015282,84928.0,84927.0,0.0374]
[1743597711123,0.16185282,84928.0,84927.0,0.0374]
[1743597711434,0.00088001,84928.0,84927.0,0.0374]
[1743597711638,0.00017662,84929.0,84927.0,0.0374]
[1743597711824,0.00017662,84929.0,84928.0,0.0377]
[1743597712021,0.00017662,84929.0,84928.0,0.0383]
[1743597712533,0.00016,84940.0,84928.0,0.0383]
[1743597712730,8e-05,84932.0,84930.0,0.5209813]
[1743597712934,0.00016,84940.0,84930.0,0.5209813]
[1743597712935,0.13352066,84939.0,84931.0,0.0396]
[1743597713124,8e-05,84934.0,84932.0,0.0377]
[1743597713327,8e-05,84934.0,84932.0,0.0383]
[1743597713528,8e-05,84934.0,84933.0,0.0396]
[1743597713730,8e-05,84934.0,84933.0,0.0402]
[1743597714633,0.00017519,84941.0,84933.0,0.0402]
[1743597714823,0.00025519,84941.0,84939.0,0.3608]
[1743597715021,0.00025519,84941.0,84940.0,0.0784]
[1743597715235,0.00025519,84941.0,84940.0,0.079]
[1743597716232,0.00025519,84941.0,84940.0,0.0784]
[1743597716534,0.13290096,84941.0,84940.0,0.0396]
[1743597716725,0.13378097,84941.0,84940.0,0.0396]
[1743597717130,0.17148097,84941.0,84940.0,0.0396]
[1743597718029,0.17148097,84941.0,84933.0,0.0388]
[1743597718229,0.0283,84940.0,84934.0,0.0396]
[1743597718536,0.02922,84940.0,84934.0,0.04024]
[1743597718740,0.16333912,84939.0,84934.0,0.04024]
[1743597719033,0.16429913,84939.0,84934.0,0.04024]
[1743597719237,0.0283,84938.0,84934.0,0.04024]
[1743597719440,0.02918001,84938.0,84934.0,0.04024]
[1743597719642,0.16596202,84937.0,84934.0,0.04024]
[1743597719841,0.16684203,84937.0,84934.0,0.04024]
[1743597720139,0.0283,84936.0,84934.0,0.04024]
[1743597720435,0.02918001,84936.0,84934.0,0.04024]
[1743597720633,0.16312594,84935.0,84934.0,0.04024]
[1743597720937,0.16400595,84935.0,84934.0,0.04024]
[1743597721138,0.52480595,84935.0,84914.0,0.07996]
[1743597721332,0.04,84934.0,84922.0,0.3608]
[1743597721533,0.04104001,84934.0,84922.0,0.3614]
[1743597721733,0.16593073,84933.0,84923.0,0.039]
[1743597721946,0.16701073,84933.0,84923.0,0.04008]
[1743597722132,0.04,84932.0,84923.0,0.04008]
[1743597722434,0.04104001,84932.0,84923.0,0.04008]
[1743597722639,0.15995651,84931.0,84923.0,0.04008]
[1743597722946,0.16099652,84931.0,84923.0,0.00108]
[1743597723137,0.3608,84926.0,84923.0,0.00108]
[1743597723332,0.0775,84925.0,84920.0,0.00017662]
[1743597723531,0.21800355,84925.0,84920.0,0.00017662]
[1743597724233,0.00108,84925.0,84920.0,0.00017662]
[1743597724544,8e-05,84929.0,84920.0,0.00077662]
[1743597725043,0.12364305,84928.0,84927.0,0.3608]
[1743597725239,0.12468306,84928.0,84927.0,0.3614]
[1743597725543,0.00104001,84928.0,84927.0,0.3714]
[1743597726137,0.074,84933.0,84927.0,0.3714]
[1743597726338,0.07508,84933.0,84927.0,0.3714]
[1743597726538,0.1265639,84932.0,84928.0,0.1165]
[1743597726737,0.12760391,84932.0,84928.0,0.1171]
[1743597726937,0.0737,84931.0,84928.0,0.1171]
[1743597727139,0.07474001,84931.0,84928.0,0.1171]
[1743597727337,0.12827669,84930.0,84928.0,0.1171]
[1743597727536,0.1293167,84930.0,84928.0,0.1171]
[1743597727736,0.2056167,84930.0,84928.0,0.1171]
[1743597729747,0.1293167,84930.0,84928.0,0.1171]
[1743597731141,0.00104001,84930.0,84928.0,0.20682]
[1743597731344,8e-05,84934.0,84928.0,0.20682]
[1743597731653,0.12422909,84929.0,84928.0,0.1271]
[1743597731848,0.1252691,84929.0,84928.0,0.1271]
[1743597732147,0.00104001,84929.0,84928.0,0.1271]
[1743597732344,0.13069141,84929.0,84928.0,0.1171]
[1743597732732,0.00104001,84929.0,84928.0,0.1171]
[1743597732946,0.0388,84935.0,84928.0,0.1171]
[1743597733240,0.03984001,84935.0,84928.0,0.1171]
[1743597733446,0.0392,84934.0,84928.0,0.1171]
[1743597733644,0.04028,84934.0,84928.0,0.1171]
[1743597733846,0.17597603,84933.0,84928.0,0.1171]
[1743597734041,0.17705603,84933.0,84928.0,0.1171]
[1743597734435,0.00108,84933.0,84928.0,0.1271]
[1743597734638,0.0392,84939.0,84928.0,0.1271]
[1743597734833,8e-05,84940.0,84932.0,0.3608]
[1743597735046,0.1285432,84939.0,84933.0,0.0782]
[1743597735235,0.12958321,84939.0,84933.0,0.0888]
[1743597735439,0.00104001,84939.0,84933.0,0.0888]
[1743597735647,0.1056532,84941.0,84937.0,0.3608]
[1743597735847,8e-05,84945.0,84938.0,0.7989]
[1743597736042,0.1402987,84946.0,84944.0,0.3608]
[1743597736240,0.1410987,84946.0,84945.0,0.0789]
[1743597736447,0.1410987,84946.0,84945.0,0.0895]
[1743597738750,0.0008,84946.0,84945.0,0.0895]
[1743597738950,8e-05,84951.0,84945.0,0.1277]
[1743597739446,0.00738703,84950.0,84945.0,0.1277]
[1743597739647,0.00738703,84950.0,84945.0,0.1377]
[1743597739853,8e-05,84951.0,84946.0,0.3608]
[1743597740048,0.00017662,84954.0,84946.0,0.5314]
[1743597740253,0.00017662,84954.0,84953.0,0.3608]
[1743597740442,0.00089662,84954.0,84953.0,0.3814]
[1743597740643,0.00089662,84954.0,84953.0,0.46116]
[1743597742141,0.00017662,84954.0,84953.0,0.46116]
[1743597743151,0.00017662,84954.0,84953.0,0.46132]
[1743597743956,0.00017662,84954.0,84953.0,0.45132]
[1743597744254,8e-05,84971.0,84953.0,0.67132]
[1743597744460,0.1402987,84980.0,84970.0,0.7216]
[1743597744658,0.1402987,84980.0,84971.0,0.1117]
[1743597744854,0.0764,84979.0,84971.0,0.13128491]
[1743597745253,0.0764,84979.0,84971.0,0.04688491]
[1743597745561,0.13260455,84974.0,84971.0,0.04688491]
[1743597745758,0.00072,84974.0,84971.0,0.08378491]
[1743597746066,0.077,84974.0,84971.0,0.08378491]
[1743597746263,0.07772,84974.0,84971.0,0.08378491]
[1743597747354,0.00072,84974.0,84971.0,0.08378491]
[1743597747555,0.0004,84975.0,84971.0,0.08378491]
[1743597747867,0.0012,84975.0,84971.0,0.08378491]
[1743597748447,0.0012,84975.0,84971.0,0.09378491]
[1743597748853,0.0004,84975.0,84971.0,0.09378491]
[1743597749266,0.0004,84975.0,84971.0,0.10378491]
[1743597749465,0.17535337,85006.0,84971.0,0.10378491]
[1743597749668,0.1793987,84999.0,84990.0,0.3608]
[1743597749863,0.0394,84998.0,84990.0,0.3614]
[1743597750253,0.0394,84998.0,84990.0,0.0006]
[1743597750254,0.13592775,84991.0,84990.0,0.0006]
[1743597750465,0.13668775,84991.0,84988.0,0.0374]
[1743597750661,0.00116,84991.0,84989.0,0.3608]
[1743597750855,0.0004,84991.0,84990.0,0.0397]
[1743597751059,0.0004,84991.0,84990.0,0.07938]
[1743597751460,0.0004,84991.0,84990.0,0.08938]
[1743597752064,0.1601813,85020.0,84990.0,0.08938]
[1743597752259,8e-05,84997.0,84990.0,0.08938]
[1743597752459,0.00072,84997.0,84990.0,0.09938]
[1743597752665,0.00072,84997.0,84996.0,0.3608]
[1743597752866,0.00072,84997.0,84996.0,0.45216]
[1743597753770,0.00072,84997.0,84996.0,0.3714]
[1743597754065,0.00072,84997.0,84996.0,0.0006]
[1743597754275,0.00072,84997.0,84990.0,0.0787]
[1743597754572,0.00072,84997.0,84990.0,0.0793]
[1743597754772,0.12494219,84996.0,84990.0,0.0396]
[1743597754968,0.0798,84995.0,84990.0,0.0396]
[1743597755169,0.08056,84995.0,84990.0,0.0396]
[1743597755368,0.1356699,84994.0,84991.0,0.0383]
[1743597755675,0.1363899,84994.0,84991.0,0.0389]
[1743597755866,0.0798,84993.0,84992.0,0.0387]
[1743597756070,0.08056,84993.0,84992.0,0.00064]
[1743597756270,0.2262299,84993.0,84973.0,0.0808]
[1743597756466,0.3608,84983.0,84974.0,0.0383]
[1743597756673,0.3616,84983.0,84974.0,0.0383]
[1743597758272,0.50518225,84983.0,84972.0,0.0387]
[1743597759272,0.49518225,84983.0,84972.0,0.0387]
[1743597760186,0.13438225,84983.0,84973.0,0.0386]
[1743597761074,0.14438225,84983.0,84972.0,0.0387]
[1743597761376,0.3608,85018.0,84982.0,0.72233651]
[1743597761681,8e-05,84995.0,84993.0,0.3608]
[1743597761885,0.00076,84995.0,84993.0,0.38148]
[1743597762089,0.00076,84995.0,84994.0,0.0386]
[1743597762384,0.00076,84995.0,84994.0,0.05928]
[1743597764591,0.00076,84995.0,84994.0,0.09838]
[1743597764981,0.1314195,84995.0,84994.0,0.00068]
[1743597766981,0.00076,84995.0,84994.0,0.00068]
[1743597767381,0.12933648,84995.0,84994.0,0.00068]
[1743597767584,0.13675832,84995.0,84994.0,0.00068]
[1743597771394,0.00076,84995.0,84994.0,0.09168]
[1743597771595,0.17535337,85022.0,84994.0,1.06248]
[1743597771895,0.14117871,85016.0,85015.0,0.3608]
[1743597772194,0.14213872,85016.0,85015.0,0.37168]
[1743597772393,0.14125871,85016.0,85015.0,0.37168]
[1743597772598,0.26978061,85016.0,85015.0,0.00088]
[1743597773594,0.14125871,85016.0,85015.0,0.00088]
[1743597773992,0.14125871,85016.0,85015.0,0.07858]
[1743597774597,0.14125871,85016.0,85015.0,0.00088]
[1743597775589,0.17865871,85016.0,85015.0,0.00088]
[1743597777802,0.14125871,85016.0,85015.0,0.00088]
[1743597778302,0.00096001,85016.0,85015.0,0.00088]
[1743597778496,0.0406,85017.0,85015.0,0.00088]
[1743597778897,0.039,85016.0,85015.0,0.00088]
[1743597779297,0.03988001,85016.0,85015.0,0.00088]
[1743597779996,0.039,85016.0,85015.0,0.00088]
[1743597782107,0.58188688,85016.0,84991.0,0.44172]
[1743597782304,0.3608,85009.0,85007.0,0.00085651]
[1743597782605,0.0803,85008.0,84998.0,0.27852461]
[1743597782806,0.46508208,85008.0,84998.0,0.27912461]
[1743597783003,0.3608,85002.0,84998.0,0.27912461]
[1743597783200,0.0803,85001.0,84998.0,0.27912461]
[1743597783396,0.00746149,85000.0,84998.0,0.27912461]
[1743597783597,0.01810149,85000.0,84998.0,0.27912461]
[1743597783797,0.20295733,84999.0,84998.0,0.27912461]
[1743597783998,0.21101883,84999.0,84998.0,0.27912461]
[1743597786504,0.21101883,84999.0,84998.0,0.0006]
[1743597786704,0.21101883,84999.0,84992.0,0.0772]
[1743597786912,0.20355734,84999.0,84992.0,0.07788]
[1743597787410,0.00060001,84999.0,84992.0,0.08788]
[1743597787711,0.16290902,84998.0,84992.0,0.07788]
[1743597787918,0.0404,84997.0,84992.0,0.07788]
[1743597788212,0.04108,84997.0,84992.0,0.07788]
[1743597788406,0.0419,84996.0,84992.0,0.07788]
[1743597788615,0.20681401,84996.0,84992.0,0.07788]
[1743597788918,0.21681401,84996.0,84992.0,0.00068]
[1743597789101,0.21681401,84996.0,84991.0,0.00017651]
[1743597790617,0.3608,84995.0,84991.0,0.00017651]
[1743597790798,0.0819,84994.0,84982.0,0.00047069]
[1743597791112,0.3608,84983.0,84982.0,0.00107069]
[1743597791311,0.36140001,84983.0,84982.0,0.00107069]
[1743597791610,0.49091698,84983.0,84982.0,0.00107069]
[1743597791799,0.48363474,84983.0,84982.0,0.00107069]
[1743597794513,0.35411777,84983.0,84982.0,0.04247069]
[1743597794709,0.35411777,84983.0,84982.0,0.05315069]
[1743597795505,0.35411777,84983.0,84982.0,0.01115069]
[1743597795703,0.49909117,84983.0,84982.0,0.00047069]
[1743597796013,0.49909117,84983.0,84982.0,0.01047069]
[1743597796807,0.49909117,84983.0,84982.0,0.04987069]
[1743597797912,0.49909117,84983.0,84982.0,0.01047069]
[1743597799217,0.49909117,84983.0,84982.0,0.00047069]
[1743597799521,0.49909117,84983.0,84980.0,0.01938]
[1743597799815,0.4781,84982.0,84968.0,0.0802]
[1743597800017,0.3608,84975.0,84968.0,0.0802]
[1743597800213,0.36144,84975.0,84968.0,0.0802]
[1743597800418,0.49121897,84975.0,84968.0,0.0802]
[1743597802515,0.50121897,84975.0,84968.0,0.0802]
[1743597804621,0.0804,84974.0,84955.0,0.3608]
[1743597804824,0.3608,84967.0,84956.0,0.0766]